bitfinex-derivatives/quotes_SOLF0:USTF0_20260211
["timestamp","ask_amount","ask_price","bid_price","bid_amount"]
[1770826974379,11.1693,80.614,80.569,11.1754]
[1770826975186,99.08,80.619,80.569,11.1754]
[1770826975187,11.1702,80.608,80.569,11.1754]
[1770826975381,99.08,80.619,80.569,11.1754]
[1770826975574,10.56790966,80.62,80.569,11.1754]
[1770826975780,8.9945591,80.636,80.585,9.41801705]
[1770826975980,11.44032356,80.659,80.585,9.41801705]
[1770826976179,99.06,80.669,80.585,9.41801705]
[1770826976180,10.56790966,80.64,80.585,9.41801705]
[1770826976385,11.168,80.624,80.573,11.175]
[1770826977382,121.06823322,80.64,80.58,11.174]
[1770826977383,11.1666,80.634,80.58,11.174]
[1770826977584,109.62790966,80.64,80.566,9.42374471]
[1770826977987,10.56790966,80.64,80.597,11.1716]
[1770826978181,11.44032356,80.656,80.59,9.40808133]
[1770826978379,10.56790966,80.66,80.59,9.40808133]
[1770826978586,11.44032356,80.659,80.59,9.40808133]
[1770826978788,11.44032356,80.656,80.59,9.40808133]
[1770826978988,10.56790966,80.66,80.595,11.1718]
[1770826979189,11.44032356,80.656,80.595,11.1718]
[1770826979386,10.56790966,80.66,80.595,11.1718]
[1770826979584,11.1642,80.651,80.595,11.1718]
[1770826979785,11.1642,80.651,80.603,11.1707]
[1770826979990,10.56790966,80.66,80.596,9.40813253]
[1770826980386,111.66,80.668,80.611,9.35803356]
[1770826980580,336.56956397,80.679,80.611,9.35803356]
[1770826980981,336.56956397,80.679,80.619,9.35803356]
[1770826981190,10.56790966,80.68,80.619,9.35803356]
[1770826982186,10.56790966,80.68,80.637,11.166]
[1770826982398,11.159,80.689,80.637,11.166]
[1770826982595,10.56790966,80.66,80.573,9.36777984]
[1770826982985,10.56790966,80.64,80.594,9.36777984]
[1770826983491,10.56790966,80.64,80.56,10.56790966]
[1770826983492,10.56790966,80.64,80.574,9.36779158]
[1770826983888,10.56790966,80.62,80.574,9.36779158]
[1770826984094,10.56790966,80.64,80.574,9.36779158]
[1770826984991,11.1677,80.626,80.574,20.54259158]
[1770826985191,10.56790966,80.62,80.531,9.37589396]
[1770826985798,10.56790966,80.62,80.557,9.37589396]
[1770826986190,11.1687,80.619,80.563,11.1763]
[1770826987097,10.56790966,80.62,80.557,9.37589396]
[1770826987394,10.56790966,80.6,80.539,9.39581218]
[1770826988183,11.1731,80.587,80.539,9.39581218]
[1770826988388,10.56790966,80.6,80.539,9.39581218]
[1770826988686,10.56790966,80.58,80.52,9.39447894]
[1770826989693,10.56790966,80.56,80.491,9.39451264]
[1770826990093,10.56790966,80.56,80.518,11.1825]
[1770826990896,111.66,80.586,80.536,9.39320518]
[1770826991299,10.56790966,80.59,80.539,11.1796]
[1770826991702,10.56790966,80.59,80.536,9.39320518]
[1770826991902,21.74070966,80.59,80.538,11.1798]
[1770826992200,10.56790966,80.59,80.536,9.39320518]
[1770826992390,10.56790966,80.59,80.491,9.40408612]
[1770826992794,8.95382623,80.603,80.511,9.40408612]
[1770826992993,10.56790966,80.6,80.51,10.56790966]
[1770826993193,10.56790966,80.6,80.511,9.40412599]
[1770826993595,10.56790966,80.58,80.511,9.40412599]
[1770826994108,10.56790966,80.58,80.509,9.40047912]
[1770826994698,10.56790966,80.56,80.512,11.1834]
[1770826995604,11.1745,80.577,80.518,9.40051514]
[1770826995998,10.56790966,80.58,80.532,20.57387771]
[1770826996194,10.56790966,80.58,80.533,9.39337771]
[1770826997303,10.56790966,80.58,80.513,9.3934071]
[1770826998106,11.1759,80.567,80.513,20.5766071]
[1770826998503,10.56790966,80.56,80.513,20.5766071]
[1770826999206,10.56790966,80.56,80.502,11.1847]
[1770826999810,99.06,80.571,80.473,9.39313295]
[1770827000001,10.56790966,80.54,80.473,9.39313295]
[1770827000614,11.1801,80.536,80.488,11.1867]
[1770827000814,10.56790966,80.54,80.488,11.1867]
[1770827001015,10.56790966,80.54,80.489,9.39323138]
[1770827001216,10.56790966,80.56,80.489,9.39323138]
[1770827002516,10.56790966,80.56,80.51,9.39283462]
[1770827003715,11.52716184,80.599,80.48,10.56790966]
[1770827003716,11.1745,80.577,80.529,9.39286121]
[1770827004310,11.1755,80.57,80.529,9.39286121]
[1770827004915,11.1755,80.57,80.489,115.36]
[1770827004916,10.56790966,80.58,80.49,9.39611255]
[1770827005109,10.56790966,80.56,80.49,9.39611255]
[1770827006213,10.56790966,80.54,80.451,9.42226503]
[1770827006411,11.1814,80.527,80.451,9.42226503]
[1770827007211,10.56790966,80.52,80.48,11.1879]
[1770827008215,10.56790966,80.52,80.449,9.4417549]
[1770827008817,11.1825,80.519,80.467,11.1896]
[1770827009614,111.78,80.529,80.449,9.4417549]
[1770827009615,10.56790966,80.5,80.449,9.4417549]
[1770827010317,10.56790966,80.48,80.424,9.44193857]
[1770827010819,10.56790966,80.5,80.443,11.1929]
[1770827011820,11.1855,80.498,80.443,11.1929]
[1770827012019,10.56790966,80.5,80.441,9.44199401]
[1770827012215,106.78,80.51,80.441,9.44199401]
[1770827012216,10.56790966,80.48,80.441,9.44199401]
[1770827012813,106.78,80.51,80.441,9.44199401]
[1770827012814,10.56790966,80.5,80.441,9.44199401]
[1770827013521,21.75310966,80.5,80.441,20.63519401]
[1770827014021,10.56790966,80.5,80.447,9.4831638]
[1770827015630,10.56790966,80.5,80.425,9.48324204]
[1770827016527,11.1863,80.492,80.436,11.194]
[1770827016821,10.56790966,80.5,80.437,9.48499296]
[1770827017030,11.1872,80.486,80.437,9.48499296]
[1770827017328,10.56790966,80.5,80.437,9.48499296]
[1770827017517,11.1853,80.499,80.445,11.1926]
[1770827018422,10.56790966,80.5,80.41,10.56790966]
[1770827018423,10.56790966,80.5,80.451,9.5039698]
[1770827019233,10.56790966,80.5,80.41,10.56790966]
[1770827019234,10.56790966,80.5,80.411,9.50405596]
[1770827019922,10.56790966,80.5,80.441,9.50405596]
[1770827020522,11.1861,80.493,80.443,11.193]
[1770827022425,11.1871,80.486,80.443,11.193]
[1770827023419,10.59379447,80.48,80.422,9.50840177]
[1770827023921,11.1894,80.469,80.423,11.1958]
[1770827024930,11.1906,80.461,80.422,9.50840177]
[1770827025123,10.59379447,80.48,80.422,9.50840177]
[1770827025519,11.1883,80.477,80.429,11.1949]
[1770827026025,11.1883,80.477,80.372,316.4059]
[1770827026026,10.59379447,80.46,80.381,9.49812618]
[1770827026231,11.1923,80.449,80.404,11.1984]
[1770827026628,11.1924,80.448,80.397,9.49812618]
[1770827027627,11.1914,80.455,80.404,11.1983]
[1770827027833,11.1914,80.455,80.397,9.49812618]
[1770827028727,10.59379447,80.46,80.417,11.1966]
[1770827028936,10.59379447,80.46,80.417,20.69580895]
[1770827030331,11.1893,80.47,80.424,11.1956]
[1770827030529,10.59379447,80.48,80.425,9.51021391]
[1770827030933,10.59379447,80.5,80.439,9.51021391]
[1770827031131,10.59379447,80.51,80.439,9.51021391]
[1770827031631,10.59379447,80.51,80.466,11.1897]
[1770827031935,10.59379447,80.51,80.421,9.51051297]
[1770827032427,10.59379447,80.51,80.406,99.18]
[1770827032428,11.1852,80.5,80.457,11.191]
[1770827032628,11.1852,80.5,80.448,9.51274077]
[1770827033531,11.184,80.508,80.448,9.51274077]
[1770827033835,10.59379447,80.52,80.448,9.51274077]
[1770827034140,10.59379447,80.5,80.448,9.51274077]
[1770827034830,10.59379447,80.5,80.457,9.545693]
[1770827035037,10.59379447,80.53,80.457,9.545693]
[1770827035735,10.59379447,80.57,80.471,9.54578111]
[1770827036131,11.1767,80.561,80.499,9.53094906]
[1770827036535,10.59379447,80.57,80.499,9.53094906]
[1770827037336,10.59379447,80.59,80.521,9.53102804]
[1770827038037,11.173,80.588,80.527,11.1813]
[1770827038236,10.59379447,80.59,80.521,9.53102804]
[1770827038935,10.59379447,80.61,80.546,9.52476397]
[1770827039334,10.59379447,80.59,80.511,9.52483843]
[1770827039936,10.59379447,80.61,80.533,9.52483843]
[1770827040340,10.59379447,80.61,80.51,10.59379447]
[1770827040341,10.59379447,80.61,80.554,11.1775]
[1770827040944,21.76369447,80.61,80.551,9.53125018]
[1770827041539,10.59379447,80.63,80.563,9.53132718]
[1770827042536,10.59379447,80.63,80.566,9.55368066]
[1770827043244,10.59379447,80.63,80.571,11.1752]
[1770827043541,15.26484815,80.69,80.53,21.59379447]
[1770827043542,11.1645,80.649,80.577,9.5537641]
[1770827044239,10.59379447,80.63,80.531,9.55200724]
[1770827044639,10.59379447,80.61,80.531,9.55200724]
[1770827044843,10.59379447,80.61,80.537,9.55200724]
[1770827044844,11.1702,80.608,80.537,9.55200724]
[1770827045437,10.59379447,80.63,80.516,9.55208771]
[1770827045438,10.59379447,80.59,80.516,9.55208771]
[1770827045635,122.11379447,80.59,80.516,9.55208771]
[1770827045842,10.59379447,80.57,80.491,9.55208771]
[1770827046032,11.1756,80.569,80.506,11.1842]
[1770827046238,11.1756,80.569,80.507,9.57553913]
[1770827046844,11.1729,80.588,80.523,9.57553913]
[1770827047241,10.59379447,80.59,80.523,9.57553913]
[1770827047444,11.1729,80.589,80.524,11.1817]
[1770827047741,10.59379447,80.62,80.531,9.57562678]
[1770827048248,10.59379447,80.62,80.555,9.57158533]
[1770827048747,11.1688,80.618,80.556,11.1772]
[1770827049046,11.1688,80.618,80.557,9.57158533]
[1770827050243,10.59379447,80.6,80.511,9.56175297]
[1770827050643,10.59379447,80.6,80.536,9.56175297]
[1770827050945,10.59379447,80.58,80.511,9.56175297]
[1770827051646,10.59379447,80.58,80.519,9.56183255]
[1770827052548,10.59379447,80.58,80.522,9.568747]
[1770827053235,11.1742,80.579,80.522,9.568747]
[1770827053749,11.1742,80.579,80.524,9.56882545]
[1770827054744,99.08,80.599,80.482,99.08]
[1770827054745,11.1728,80.589,80.53,9.56969496]
[1770827055248,10.59379447,80.58,80.51,9.56977151]
[1770827055449,21.76789447,80.58,80.522,9.56977151]
[1770827056348,21.76789447,80.58,80.524,9.56846797]
[1770827056550,10.59379447,80.58,80.524,9.56846797]
[1770827056946,10.59379447,80.6,80.527,9.56846797]
[1770827057247,22.3326,80.636,80.527,9.56846797]
[1770827057248,10.59379447,80.58,80.527,9.56846797]
[1770827057450,10.59379447,80.58,80.528,11.1812]
[1770827058144,11.1743,80.578,80.527,9.56846797]
[1770827059349,10.59379447,80.58,80.507,11.1841]
[1770827059647,10.59379447,80.56,80.507,11.1841]
[1770827059842,10.59379447,80.56,80.508,9.56779041]
[1770827060042,10.59379447,80.56,80.512,9.56779041]
[1770827060242,11.1755,80.57,80.512,9.56779041]
[1770827060450,10.59379447,80.58,80.538,9.56980959]
[1770827060745,10.59379447,80.62,80.538,9.56980959]
[1770827061351,10.59379447,80.62,80.561,9.56955454]
[1770827061757,10.59379447,80.6,80.543,9.56955454]
[1770827062652,11.1719,80.596,80.544,11.179]
[1770827062852,11.1719,80.596,80.544,20.74037426]
[1770827063659,10.59379447,80.6,80.525,9.56144499]
[1770827064761,11.1739,80.581,80.529,9.56624633]
[1770827065163,10.59379447,80.6,80.529,9.56624633]
[1770827066160,11.1717,80.597,80.547,11.1785]
[1770827066556,10.59379447,80.6,80.555,9.56651919]
[1770827066763,10.59379447,80.62,80.555,9.56651919]
[1770827067157,10.59379447,80.62,80.561,11.1765]
[1770827067551,10.59379447,80.62,80.562,9.56680816]
[1770827068862,10.59379447,80.62,80.564,11.1761]
[1770827069057,10.59379447,80.62,80.562,9.56680816]
[1770827069264,11.17,80.609,80.563,20.7386287]
[1770827069463,10.59379447,80.62,80.564,9.5622287]
[1770827070762,11.169,80.616,80.565,11.176]
[1770827071567,11.169,80.616,80.57,11.1753]
[1770827071867,10.59379447,80.62,80.566,9.57628118]
[1770827072569,11.1679,80.625,80.577,11.1743]
[1770827072868,10.59379447,80.62,80.566,9.57628118]
[1770827073064,10.59379447,80.62,80.549,9.57979075]
[1770827073264,11.1723,80.593,80.549,9.57979075]
[1770827073660,10.59379447,80.6,80.532,9.57979075]
[1770827073863,11.1753,80.571,80.491,9.57979075]
[1770827074060,10.59379447,80.58,80.491,9.57979075]
[1770827074265,10.59379447,80.58,80.527,9.57858065]
[1770827074469,10.59379447,80.6,80.527,9.57858065]
[1770827074977,10.59379447,80.58,80.529,11.181]
[1770827075777,11.1751,80.573,80.529,11.181]
[1770827076578,10.59379447,80.58,80.536,11.1801]
[1770827078479,10.59379447,80.58,80.529,11.1811]
[1770827078675,10.59379447,80.58,80.527,9.57858065]
[1770827079782,11.1751,80.573,80.527,9.57858065]
[1770827080085,10.59379447,80.58,80.527,9.57858065]
[1770827080382,8.97781202,80.579,80.527,9.57858065]
[1770827080585,8.97781202,80.578,80.527,9.57858065]
[1770827080883,8.97781202,80.577,80.527,9.57858065]
[1770827081083,8.97781202,80.576,80.527,9.57858065]
[1770827081284,10.57249998,80.58,80.527,9.57858065]
[1770827081285,8.97781202,80.575,80.527,9.57858065]
[1770827081586,8.97781202,80.574,80.507,9.5760207]
[1770827081775,8.97781202,80.573,80.507,9.5760207]
[1770827081985,11.1791,80.543,80.49,20.76181923]
[1770827082184,10.57249998,80.54,80.491,9.57531923]
[1770827082378,10.57249998,80.56,80.491,9.57531923]
[1770827082682,8.98156487,80.559,80.491,9.57531923]
[1770827082877,10.57249998,80.54,80.498,11.1853]
[1770827083674,10.57249998,80.54,80.491,9.57531923]
[1770827084382,11.1799,80.538,80.493,11.186]
[1770827084782,15.26484815,80.572,80.446,99.06]
[1770827084783,9.05824928,80.56,80.494,9.57174435]
[1770827084984,9.05824928,80.569,80.52,9.57174435]
[1770827085285,9.05519541,80.586,80.52,9.57174435]
[1770827085486,9.05519541,80.585,80.52,9.57174435]
[1770827085782,9.05519541,80.584,80.52,9.57174435]
[1770827086090,11.1751,80.573,80.53,11.1809]
[1770827086282,9.05568989,80.582,80.52,9.57174435]
[1770827086487,9.05568989,80.581,80.52,9.57174435]
[1770827086689,9.05568989,80.581,80.473,22.3775]
[1770827086690,11.1769,80.559,80.512,11.1834]
[1770827087084,9.05829908,80.558,80.502,9.55973421]
[1770827087389,9.05829908,80.557,80.502,9.55973421]
[1770827087583,11.1791,80.544,80.503,11.1846]
[1770827087789,9.05902237,80.555,80.503,11.1846]
[1770827087990,9.05902237,80.554,80.503,11.1846]
[1770827088296,9.05902237,80.553,80.503,11.1846]
[1770827088586,22.89727223,80.589,80.473,22.3775]
[1770827088587,11.50119648,80.575,80.504,9.57063427]
[1770827088790,10.57249998,80.59,80.504,9.57063427]
[1770827088986,9.05642157,80.589,80.504,9.57063427]
[1770827089187,9.05642157,80.588,80.504,9.57063427]
[1770827089493,11.1749,80.574,80.526,11.1815]
[1770827089683,9.05642157,80.573,80.526,11.1815]
[1770827089883,10.57249998,80.59,80.524,9.57062448]
[1770827090079,11.1755,80.57,80.524,9.57062448]
[1770827090285,10.57249998,80.59,80.524,9.57062448]
[1770827090484,9.06274846,80.589,80.524,9.57062448]
[1770827090684,9.06274846,80.588,80.524,9.57062448]
[1770827090984,9.06274846,80.587,80.524,9.57062448]
[1770827091179,11.1761,80.566,80.524,9.57062448]
[1770827091385,9.06274846,80.585,80.524,9.57062448]
[1770827091689,9.06274846,80.584,80.524,9.57062448]
[1770827091885,10.57249998,80.57,80.524,9.57062448]
[1770827092086,9.06274846,80.569,80.507,9.55264524]
[1770827092287,10.57249998,80.57,80.507,9.55264524]
[1770827092489,9.06299745,80.569,80.507,9.55264524]
[1770827092688,9.06299745,80.568,80.507,9.55264524]
[1770827092891,9.06310798,80.567,80.507,9.55264524]
[1770827093093,9.0638164,80.566,80.507,9.55264524]
[1770827093290,10.57249998,80.58,80.507,9.55264524]
[1770827093592,9.06422662,80.579,80.507,9.55264524]
[1770827093894,9.06422662,80.578,80.511,11.1836]
[1770827094094,20.5654231,80.577,80.511,11.1836]
[1770827094287,9.06422662,80.576,80.511,11.1836]
[1770827094482,9.06422662,80.575,80.511,11.1836]
[1770827094683,11.1776,80.554,80.507,9.55264524]
[1770827095193,10.57249998,80.56,80.507,9.55264524]
[1770827095390,9.0665587,80.559,80.507,9.55264524]
[1770827095688,9.0665587,80.558,80.507,9.55264524]
[1770827095988,9.0665587,80.557,80.508,11.1839]
[1770827096196,9.0665587,80.556,80.507,9.55264524]
[1770827096394,9.06507389,80.555,80.472,9.55066596]
[1770827096590,9.06507389,80.554,80.503,9.55066596]
[1770827096890,9.06410935,80.568,80.503,9.55066596]
[1770827097195,11.1771,80.558,80.515,9.55065958]
[1770827098593,11.1762,80.565,80.523,11.1819]
[1770827099696,10.57249998,80.58,80.529,9.55939014]
[1770827099889,9.06199289,80.579,80.529,9.55939014]
[1770827100198,9.06199289,80.578,80.529,9.55939014]
[1770827100498,9.06199289,80.577,80.529,9.55939014]
[1770827100794,11.50119648,80.595,80.529,9.55939014]
[1770827101099,9.06092842,80.594,80.529,9.55939014]
[1770827101296,9.06092842,80.593,80.559,9.58038628]
[1770827101491,9.05687998,80.616,80.559,9.58038628]
[1770827101687,10.57249998,80.65,80.559,9.58038628]
[1770827101893,10.57249998,80.63,80.551,9.58038628]
[1770827102090,9.05411463,80.648,80.551,9.58038628]
[1770827102294,9.05411463,80.647,80.551,9.58038628]
[1770827102497,9.05411463,80.646,80.551,9.58038628]
[1770827102696,9.05411463,80.645,80.551,9.58038628]
[1770827102897,10.57249998,80.61,80.552,9.58072246]
[1770827103092,108.11411463,80.609,80.515,9.58071437]
[1770827103393,9.05411463,80.608,80.515,9.58071437]
[1770827103598,9.05411463,80.607,80.515,9.58071437]
[1770827103794,9.05411463,80.606,80.515,9.58071437]
[1770827104001,9.05411463,80.608,80.541,9.59190006]
[1770827104193,99.06,80.609,80.541,9.59190006]
[1770827104493,10.57249998,80.63,80.579,9.59190006]
[1770827104695,9.04899868,80.649,80.579,9.59190006]
[1770827104888,15.26484815,80.686,80.57,10.57249998]
[1770827104889,10.57249998,80.67,80.591,9.59190006]
[1770827105093,9.04899868,80.688,80.616,9.5918926]
[1770827105298,10.57249998,80.7,80.616,9.5918926]
[1770827105593,10.57249998,80.7,80.635,11.1664]
[1770827105799,10.57249998,80.68,80.591,9.5918926]
[1770827106596,10.57249998,80.68,80.59,10.57249998]
[1770827106597,10.57249998,80.68,80.613,9.59069624]
[1770827106809,110.84,80.679,80.613,9.59069624]
[1770827107600,11.1614,80.671,80.614,11.1692]
[1770827108497,10.57249998,80.68,80.613,9.59069624]
[1770827108498,121.41249998,80.68,80.613,9.59069624]
[1770827108902,11.1618,80.669,80.613,9.59069624]
[1770827110895,11.1618,80.669,80.613,20.76009624]
[1770827111303,10.57249998,80.7,80.625,9.55073453]
[1770827111700,10.57249998,80.7,80.607,9.55073453]
[1770827111701,10.57249998,80.67,80.607,9.55073453]
[1770827112406,10.57249998,80.67,80.609,9.55298843]
[1770827113810,21.73409998,80.67,80.611,9.5529817]
[1770827114002,10.57249998,80.67,80.611,9.5529817]
[1770827114404,10.57249998,80.67,80.61,11.1698]
[1770827114405,10.57249998,80.67,80.613,20.72587788]
[1770827114805,10.57249998,80.67,80.614,9.55647788]
[1770827115499,11.1619,80.668,80.617,9.55647187]
[1770827116109,11.163,80.66,80.617,9.55647187]
[1770827117108,11.1618,80.669,80.619,9.56717739]
[1770827117307,106.28,80.679,80.619,9.56717739]
[1770827118204,10.57249998,80.66,80.573,9.55592835]
[1770827119210,10.57249998,80.66,80.591,9.55592267]
[1770827119705,111.3,80.672,80.611,9.55592267]
[1770827119909,10.57249998,80.68,80.611,9.55592267]
[1770827120109,11.50119648,80.72,80.621,9.5534962]
[1770827120110,10.57249998,80.72,80.621,9.5534962]
[1770827120604,11.1569,80.704,80.659,9.5534962]
[1770827120913,10.57249998,80.72,80.659,9.5534962]
[1770827121811,10.57249998,80.73,80.668,9.55328385]
[1770827122108,10.57249998,80.73,80.641,9.45335606]
[1770827122312,10.57249998,80.71,80.621,9.45335606]
[1770827122898,11.1581,80.695,80.65,11.1643]
[1770827123317,10.57249998,80.71,80.651,9.45335421]
[1770827124515,10.57249998,80.69,80.633,9.47836534]
[1770827125823,11.1596,80.684,80.634,11.1665]
[1770827126611,11.1606,80.677,80.634,11.1665]
[1770827126813,11.1606,80.677,80.633,9.47836534]
[1770827127009,11.1626,80.663,80.616,9.4894709]
[1770827127402,10.57249998,80.67,80.616,9.4894709]
[1770827127602,11.16,80.681,80.616,9.4894709]
[1770827127807,98.96,80.694,80.616,9.4894709]
[1770827127808,10.57249998,80.68,80.616,9.4894709]
[1770827128310,11.1631,80.659,80.616,9.4894709]
[1770827128515,10.57249998,80.66,80.599,9.43547488]
[1770827129013,10.57249998,80.66,80.605,11.1705]
[1770827129315,10.57249998,80.66,80.557,98.96]
[1770827129316,10.57249998,80.64,80.57,9.4354735]
[1770827129611,10.57249998,80.64,80.52,184.9464]
[1770827129612,10.57249998,80.64,80.588,9.4354735]
[1770827131115,11.1668,80.632,80.588,9.4354735]
[1770827131414,10.57249998,80.66,80.597,9.44318696]
[1770827131603,10.57249998,80.66,80.557,173.8675]
[1770827131604,10.57249998,80.68,80.601,9.44318696]
[1770827131803,10.57249998,80.7,80.621,9.44318696]
[1770827132009,10.57249998,80.7,80.62,10.57249998]
[1770827132010,10.57249998,80.72,80.664,20.61175796]
[1770827132212,11.1549,80.719,80.665,9.44945796]
[1770827132511,110.92,80.738,80.676,9.44945796]
[1770827132708,11.156,80.71,80.641,9.44945796]
[1770827132911,10.57249998,80.72,80.663,11.1624]
[1770827133104,10.57249998,80.72,80.664,9.44945644]
[1770827133612,10.57249998,80.72,80.641,9.44945644]
[1770827133811,10.57249998,80.7,80.641,9.44945644]
[1770827136814,11.1596,80.685,80.641,9.44945644]
[1770827137010,10.57249998,80.7,80.641,9.44945644]
[1770827137819,10.57249998,80.7,80.65,20.59310941]
[1770827138021,11.1558,80.712,80.651,9.42880941]
[1770827138815,11.1558,80.712,80.656,9.42526813]
[1770827139418,11.1558,80.712,80.658,11.1632]
[1770827139614,10.57249998,80.7,80.656,9.42526813]
[1770827141224,11.1579,80.697,80.656,9.42526813]
[1770827142221,10.57249998,80.68,80.619,9.42305057]
[1770827143021,10.54155685,80.69,80.619,9.42305057]
[1770827143617,11.1591,80.688,80.636,9.42305042]
[1770827144726,11.1591,80.688,80.639,11.1658]
[1770827145421,11.1591,80.688,80.639,20.6001996]
[1770827145726,11.1579,80.697,80.643,9.4343996]
[1770827146319,11.1582,80.695,80.648,9.43440558]
[1770827147025,11.1595,80.685,80.637,11.166]
[1770827147518,9.02458113,80.689,80.628,9.43440472]
[1770827147718,11.162,80.667,80.628,9.43440472]
[1770827147914,10.54155685,80.69,80.581,9.43440472]
[1770827147915,10.54155685,80.67,80.581,9.43440472]
[1770827148124,9.02458113,80.669,80.581,9.43440472]
[1770827148314,9.02458113,80.668,80.581,9.43440472]
[1770827148626,9.02458113,80.667,80.581,9.43440472]
[1770827148819,11.1643,80.65,80.606,11.1703]
[1770827149419,10.54155685,80.67,80.601,9.43393358]
[1770827149618,9.05133983,80.669,80.601,9.43393358]
[1770827149819,9.05133983,80.668,80.601,9.43393358]
[1770827150023,11.1641,80.652,80.601,9.43393358]
[1770827150825,11.1641,80.652,80.604,11.1707]
[1770827152325,11.165,80.645,80.604,11.1707]
[1770827152522,10.54155685,80.63,80.564,9.45772359]
[1770827152713,98.94,80.645,80.564,9.45772359]
[1770827152919,11.1668,80.633,80.589,11.1726]
[1770827153121,10.54155685,80.66,80.59,9.45772168]
[1770827153825,9.04922356,80.659,80.59,9.45772168]
[1770827154029,9.04922356,80.658,80.59,9.45772168]
[1770827154224,10.54155685,80.66,80.59,9.45772168]
[1770827154422,11.1645,80.649,80.601,11.171]
[1770827154627,10.54155685,80.64,80.561,9.4565694]
[1770827154824,10.54155685,80.62,80.561,9.4565694]
[1770827156424,11.1697,80.611,80.561,20.6331694]
[1770827156620,10.54155685,80.62,80.537,481.8766349]
[1770827156621,9.04769207,80.619,80.543,9.44175256]
[1770827156822,9.04769207,80.618,80.543,9.44175256]
[1770827157025,9.04769207,80.617,80.543,9.44175256]
[1770827157225,11.1707,80.604,80.562,11.1765]
[1770827158421,11.1696,80.612,80.566,11.1759]
[1770827158728,10.54155685,80.62,80.563,9.43570388]
[1770827159028,11.1716,80.598,80.55,11.1781]
[1770827159224,9.04769207,80.619,80.529,9.43570234]
[1770827159528,11.1718,80.596,80.545,11.1788]
[1770827159825,10.54155685,80.6,80.529,9.43570234]
[1770827160033,10.54155685,80.58,80.529,9.43570234]
[1770827160523,10.54155685,80.58,80.501,9.43585031]
[1770827161324,10.54155685,80.56,80.501,9.43585031]
[1770827161526,10.54155685,80.54,80.441,9.4358491]
[1770827161731,10.54155685,80.52,80.441,9.4358491]
[1770827162022,10.54155685,80.5,80.447,9.4358491]
[1770827162429,10.54155685,80.48,80.429,9.43740047]
[1770827162926,10.54155685,80.48,80.381,99.0]
[1770827162927,10.54155685,80.48,80.387,9.43740047]
[1770827163123,10.54155685,80.46,80.405,9.43739982]
[1770827163429,10.54155685,80.49,80.405,9.43739982]
[1770827163628,11.1881,80.479,80.419,11.1963]
[1770827164030,10.54155685,80.47,80.405,9.43739982]
[1770827164719,10.54155685,80.47,80.409,9.37451784]
[1770827165523,10.54155685,80.47,80.418,11.1964]
[1770827165721,10.54155685,80.47,80.419,9.3745176]
[1770827165921,173.8943,80.545,80.419,9.3745176]
[1770827166124,11.1853,80.499,80.432,9.33605657]
[1770827167729,11.1853,80.499,80.434,9.33605677]
[1770827168226,10.54155685,80.5,80.434,9.33605677]
[1770827168430,10.54155685,80.5,80.446,11.1926]
[1770827168633,10.54155685,80.52,80.447,9.36134392]
[1770827168932,10.54155685,80.5,80.43,9.36134392]
[1770827169232,10.54155685,80.48,80.43,9.36134392]
[1770827169828,11.1881,80.479,80.411,9.36134386]
[1770827170024,11.1881,80.479,80.412,11.1973]
[1770827170329,11.1881,80.479,80.39,10.54155685]
[1770827170330,11.1881,80.479,80.413,9.3855943]
[1770827170832,10.54155685,80.48,80.418,9.3855943]
[1770827171235,11.1882,80.478,80.42,20.58179405]
[1770827171728,11.1882,80.478,80.421,9.38559405]
[1770827171935,11.1882,80.478,80.424,9.38559405]
[1770827172234,117.98155685,80.5,80.424,9.38559405]
[1770827173031,117.98155685,80.5,80.425,9.38545045]
[1770827173237,10.54155685,80.5,80.425,9.38545045]
[1770827173537,10.54155685,80.48,80.425,9.38545045]
[1770827174236,21.72955685,80.48,80.425,9.38545045]
[1770827174426,10.54155685,80.48,80.425,9.38545045]
[1770827174934,11.1892,80.471,80.412,11.1973]
[1770827176034,10.54155685,80.48,80.423,9.3833235]
[1770827176035,21.72945685,80.48,80.423,9.3833235]
[1770827176430,10.54155685,80.48,80.423,9.3833235]
[1770827176735,10.54155685,80.48,80.424,11.1956]
[1770827177336,10.54155685,80.48,80.423,9.3833235]
[1770827177539,11.1893,80.47,80.423,9.3833235]
[1770827177837,10.54155685,80.46,80.415,11.1969]
[1770827178230,11.1868,80.488,80.432,9.3813762]
[1770827178834,11.1868,80.488,80.434,11.1943]
[1770827179238,11.188,80.48,80.432,9.3813762]
[1770827179633,10.54155685,80.49,80.425,11.1955]
[1770827179836,10.54155685,80.49,80.425,20.57687596]
[1770827180741,10.54155685,80.49,80.429,9.38104215]
[1770827181336,11.188,80.48,80.43,11.1948]